[Event "MČR v bleskovém šachu družstev 2019"]
[Site "Teplice, Czech Republic"]
[Date "2019.09.14"]
[Round "14.1"]
[White "Kociscak, Jiri"]
[Black "Brejnik, Gustav"]
[Result "1-0"]
[TimeControl "3 mim. + 2 s"]
[WhiteTitle "IM"]
[WhiteFideId "322121"]
[BlackFideId "362662"]
[WhiteElo "2417"]
[BlackElo "2137"]

1. d4 {[%clk 00:03:02]} {[%emt 00:00:03]} Nf6 {[%clk 00:03:03]} 2. c4 {[%clk
00:03:03]} e6 {[%clk 00:03:05]} 3. Nf3 {[%clk 00:03:04]} {[%emt 00:00:02]} b6
{[%clk 00:03:06]} 4. g3 {[%clk 00:03:05]} {[%emt 00:00:02]} Ba6 {[%clk
00:03:06]} {[%emt 00:00:02]} 5. Qb3 {[%clk 00:03:04]} {[%emt 00:00:02]} d5
{[%clk 00:03:00]} {[%emt 00:00:08]} 6. Ne5 {[%clk 00:02:46]} {[%emt 00:00:20]}
dxc4 {[%clk 00:02:43]} {[%emt 00:00:19]} 7. Qc3 {[%clk 00:02:02]} {[%emt
00:00:47]} Nd5 {[%clk 00:01:55]} {[%emt 00:00:50]} 8. Qf3 {[%clk 00:01:49]}
{[%emt 00:00:14]} f6 {[%clk 00:01:39]} {[%emt 00:00:17]} 9. Qh5+ {[%clk
00:01:45]} {[%emt 00:00:06]} Ke7 {[%clk 00:01:08]} {[%emt 00:00:33]} 10. Bg2
{[%clk 00:01:11]} {[%emt 00:00:36]} Qe8 {[%clk 00:00:44]} {[%emt 00:00:27]} 11.
Qh4 {[%clk 00:01:11]} {[%emt 00:00:02]} Kd8 {[%clk 00:00:13]} {[%emt 00:00:34]}
12. Nf3 {[%clk 00:00:54]} {[%emt 00:00:18]} Be7 {[%clk 00:00:07]} {[%emt
00:00:08]} 13. O-O {[%clk 00:00:53]} {[%emt 00:00:03]} Bb7 {[%clk 00:00:08]}
{[%emt 00:00:01]} 14. Nc3 {[%clk 00:00:41]} {[%emt 00:00:14]} Nxc3 {[%clk
00:00:07]} {[%emt 00:00:03]} 15. bxc3 {[%clk 00:00:42]} Qg6 {[%clk 00:00:07]}
{[%emt 00:00:02]} 16. Nd2 {[%clk 00:00:35]} {[%emt 00:00:10]} Bxg2 {[%clk
00:00:07]} {[%emt 00:00:02]} 17. Kxg2 {[%clk 00:00:35]} {[%emt 00:00:01]} f5
{[%clk 00:00:04]} {[%emt 00:00:06]} 18. Qf4 {[%clk 00:00:33]} {[%emt 00:00:04]}
Nd7 {[%emt 00:00:05]} 19. Nxc4 {[%clk 00:00:27]} {[%emt 00:00:07]} Rc8 {[%clk
00:00:04]} 20. h3 {[%clk 00:00:17]} {[%emt 00:00:12]} Qf6 {[%clk 00:00:05]} 21.
Rd1 {[%clk 00:00:15]} {[%emt 00:00:04]} g5 {[%clk 00:00:06]} {[%emt 00:00:01]}
22. Qf3 {[%clk 00:00:16]} {[%emt 00:00:01]} h5 {[%clk 00:00:07]} {[%emt
00:00:01]} 23. Ne5 {[%clk 00:00:16]} {[%emt 00:00:01]} g4 {[%clk 00:00:08]}
{[%emt 00:00:02]} 24. Qf4 {[%clk 00:00:11]} {[%emt 00:00:07]} gxh3+ {[%clk
00:00:08]} {[%emt 00:00:03]} 25. Kh2 {[%clk 00:00:12]} h4 {[%clk 00:00:08]}
{[%emt 00:00:01]} 26. Qf3 {[%clk 00:00:05]} {[%emt 00:00:09]} hxg3+ {[%clk
00:00:09]} {[%emt 00:00:01]} 27. fxg3 {[%clk 00:00:06]} {[%emt 00:00:01]} Ke8
{[%clk 00:00:10]} {[%emt 00:00:01]} 28. Nc6 {[%clk 00:00:04]} {[%emt 00:00:04]}
Bd6 {[%clk 00:00:11]} {[%emt 00:00:01]} 29. Bf4 {[%clk 00:00:05]} {[%emt
00:00:01]} Bxf4 {[%clk 00:00:11]} {[%emt 00:00:01]} 30. Qxf4 {[%clk 00:00:06]}
Rg8 {[%clk 00:00:09]} {[%emt 00:00:04]} 31. Qf3 {[%clk 00:00:07]} {[%emt
00:00:01]} Rg4 {[%clk 00:00:09]} {[%emt 00:00:02]} 32. Rf1 {[%clk 00:00:07]}
{[%emt 00:00:02]} Kf7 {[%clk 00:00:10]} {[%emt 00:00:01]} 33. Qxg4 {[%clk
00:00:07]} {[%emt 00:00:02]} fxg4 {[%clk 00:00:10]} {[%emt 00:00:01]} 34. e4
{[%clk 00:00:08]} Kg6 {[%clk 00:00:09]} {[%emt 00:00:04]} 35. Rxf6+ {[%clk
00:00:08]} {[%emt 00:00:02]} Nxf6 {[%clk 00:00:10]} 36. Ne7+ {[%clk 00:00:10]}
1-0

[Event "MČR v bleskovém šachu družstev 2019"]
[Site "Teplice, Czech Republic"]
[Date "2019.09.14"]
[Round "14.2"]
[White "Hula, Lukas"]
[Black "Polak, Tomas"]
[Result "0-1"]
[TimeControl "3 mim. + 2 s"]
[BlackTitle "GM"]
[WhiteFideId "319830"]
[BlackFideId "300560"]
[WhiteElo "2111"]
[BlackElo "2510"]

1. Nf3 {[%clk 00:03:03]} Nf6 {[%clk 00:03:03]} 2. c4 {[%clk 00:03:04]} e6
{[%clk 00:03:04]} {[%emt 00:00:01]} 3. g3 {[%clk 00:03:04]} {[%emt 00:00:03]}
b6 {[%emt 00:00:02]} 4. Bg2 Bb7 {[%clk 00:03:06]} 5. O-O {[%clk 00:03:06]}
{[%emt 00:00:01]} d5 {[%clk 00:03:07]} {[%emt 00:00:01]} 6. cxd5 {[%clk
00:03:03]} {[%emt 00:00:05]} Nxd5 {[%clk 00:03:07]} {[%emt 00:00:01]} 7. Nc3
{[%clk 00:03:03]} {[%emt 00:00:02]} Be7 {[%clk 00:03:07]} {[%emt 00:00:03]} 8.
d3 {[%clk 00:02:57]} {[%emt 00:00:07]} O-O {[%clk 00:03:07]} {[%emt 00:00:02]}
9. Bd2 {[%clk 00:02:50]} {[%emt 00:00:09]} c5 {[%clk 00:03:06]} {[%emt
00:00:03]} 10. Rc1 {[%clk 00:02:49]} {[%emt 00:00:03]} Nd7 {[%clk 00:03:06]}
{[%emt 00:00:02]} 11. a3 {[%clk 00:02:41]} {[%emt 00:00:10]} Rc8 {[%clk
00:03:03]} {[%emt 00:00:05]} 12. d4 {[%clk 00:02:31]} {[%emt 00:00:13]} c4
{[%clk 00:02:47]} {[%emt 00:00:18]} 13. e4 {[%clk 00:02:23]} {[%emt 00:00:10]}
Nxc3 {[%clk 00:02:45]} {[%emt 00:00:03]} 14. Bxc3 {[%clk 00:02:14]} {[%emt
00:00:12]} Bxe4 {[%clk 00:02:45]} {[%emt 00:00:02]} 15. Re1 {[%clk 00:02:07]}
{[%emt 00:00:09]} Bd5 {[%clk 00:02:44]} {[%emt 00:00:03]} 16. Bh3 {[%clk
00:02:00]} {[%emt 00:00:09]} Qc7 {[%clk 00:02:36]} {[%emt 00:00:10]} 17. Nd2
{[%clk 00:02:01]} {[%emt 00:00:02]} Qb7 {[%clk 00:02:35]} {[%emt 00:00:02]} 18.
Nf1 {[%clk 00:02:00]} {[%emt 00:00:03]} Nf6 {[%clk 00:02:26]} {[%emt 00:00:12]}
19. Ne3 {[%clk 00:01:58]} {[%emt 00:00:03]} Bf3 {[%clk 00:02:27]} {[%emt
00:00:01]} 20. Qc2 {[%clk 00:01:53]} {[%emt 00:00:06]} b5 {[%clk 00:02:22]}
{[%emt 00:00:07]} 21. Nf1 {[%clk 00:01:34]} {[%emt 00:00:21]} Rfd8 {[%clk
00:02:20]} {[%emt 00:00:04]} 22. Nd2 {[%clk 00:01:35]} {[%emt 00:00:01]} Bc6
{[%clk 00:02:17]} {[%emt 00:00:04]} 23. Re3 {[%clk 00:01:20]} {[%emt 00:00:17]}
Nd5 {[%clk 00:02:01]} {[%emt 00:00:18]} 24. Re5 {[%clk 00:01:18]} {[%emt
00:00:04]} Bf6 {[%clk 00:01:57]} {[%emt 00:00:06]} 25. Rh5 {[%clk 00:01:19]}
{[%emt 00:00:01]} g6 {[%clk 00:01:58]} {[%emt 00:00:01]} 26. Re5 {[%clk
00:01:12]} {[%emt 00:00:09]} Bxe5 {[%clk 00:01:55]} {[%emt 00:00:05]} 27. dxe5
{[%clk 00:01:13]} {[%emt 00:00:01]} Nxc3 {[%clk 00:01:51]} {[%emt 00:00:07]} 28.
Qxc3 {[%clk 00:01:13]} {[%emt 00:00:01]} Rd3 {[%clk 00:01:51]} {[%emt
00:00:01]} 29. Qc2 {[%clk 00:01:11]} {[%emt 00:00:04]} Rcd8 {[%clk 00:01:52]}
{[%emt 00:00:01]} 30. Nf1 {[%clk 00:01:12]} Be4 {[%clk 00:01:46]} {[%emt
00:00:09]} 0-1

[Event "MČR v bleskovém šachu družstev 2019"]
[Site "Teplice, Czech Republic"]
[Date "2019.09.14"]
[Round "14.3"]
[White "Stocek, Jiri"]
[Black "Hoke, Petr"]
[Result "1-0"]
[TimeControl "3 mim. + 2 s"]
[WhiteTitle "GM"]
[WhiteFideId "304760"]
[BlackFideId "305006"]
[WhiteElo "2505"]
[BlackElo "1946"]

1. e4 {[%clk 00:03:03]} d6 {[%clk 00:03:03]} {[%emt 00:00:02]} 2. d4 {[%clk
00:03:03]} Nf6 {[%clk 00:03:04]} {[%emt 00:00:02]} 3. Nc3 {[%clk 00:03:03]}
{[%emt 00:00:02]} e5 {[%clk 00:03:04]} {[%emt 00:00:02]} 4. Nf3 {[%clk
00:03:01]} {[%emt 00:00:03]} Nbd7 {[%clk 00:03:05]} {[%emt 00:00:01]} 5. Rg1
{[%clk 00:03:01]} {[%emt 00:00:03]} exd4 {[%clk 00:02:45]} {[%emt 00:00:21]} 6.
Nxd4 {[%clk 00:03:02]} {[%emt 00:00:02]} Nc5 {[%clk 00:02:39]} {[%emt
00:00:09]} 7. Qe2 {[%clk 00:02:46]} {[%emt 00:00:17]} a6 {[%clk 00:02:30]}
{[%emt 00:00:12]} 8. g4 {[%clk 00:02:45]} {[%emt 00:00:02]} Ne6 {[%clk
00:02:24]} {[%emt 00:00:08]} 9. Nf3 {[%clk 00:02:33]} {[%emt 00:00:14]} Be7
{[%clk 00:02:14]} {[%emt 00:00:11]} 10. Be3 {[%clk 00:02:24]} {[%emt 00:00:10]}
Nc5 {[%clk 00:01:58]} {[%emt 00:00:19]} 11. O-O-O {[%clk 00:02:10]} {[%emt
00:00:16]} Ncxe4 {[%clk 00:01:54]} {[%emt 00:00:06]} 12. Nxe4 {[%clk 00:02:09]}
{[%emt 00:00:02]} Nxe4 {[%clk 00:01:54]} {[%emt 00:00:01]} 13. Bd4 {[%clk
00:02:09]} {[%emt 00:00:02]} Nf6 {[%clk 00:01:47]} {[%emt 00:00:09]} 14. g5
{[%clk 00:02:09]} {[%emt 00:00:02]} Nh5 {[%clk 00:01:48]} 15. Ne5 {[%clk
00:01:22]} {[%emt 00:00:50]} Nf4 {[%clk 00:01:21]} {[%emt 00:00:29]} 16. Qf3
{[%clk 00:01:22]} {[%emt 00:00:03]} Bxg5 {[%clk 00:01:13]} {[%emt 00:00:10]} 17.
Be3 {[%clk 00:01:00]} {[%emt 00:00:24]} Qf6 {[%clk 00:00:57]} {[%emt 00:00:18]}
18. Rxg5 {[%clk 00:00:38]} {[%emt 00:00:24]} dxe5 {[%clk 00:00:54]} {[%emt
00:00:05]} 19. Rxe5+ {[%clk 00:00:15]} {[%emt 00:00:25]} Qxe5 {[%clk 00:00:51]}
{[%emt 00:00:05]} 20. Bxf4 {[%clk 00:00:15]} {[%emt 00:00:02]} Qa5 {[%clk
00:00:42]} {[%emt 00:00:11]} 21. Qe4+ {[%clk 00:00:10]} {[%emt 00:00:06]} Be6
{[%clk 00:00:42]} {[%emt 00:00:03]} 22. Bc4 {[%clk 00:00:08]} {[%emt 00:00:04]}
Qf5 {[%clk 00:00:31]} {[%emt 00:00:13]} 23. Qxf5 {[%clk 00:00:05]} {[%emt
00:00:06]} Bxf5 {[%clk 00:00:32]} {[%emt 00:00:01]} 24. Re1+ {[%clk 00:00:05]}
{[%emt 00:00:02]} Be6 {[%clk 00:00:17]} {[%emt 00:00:17]} 25. Bxe6 {[%clk
00:00:04]} {[%emt 00:00:02]} fxe6 {[%clk 00:00:19]} {[%emt 00:00:01]} 26. Bxc7
{[%clk 00:00:05]} {[%emt 00:00:02]} Kd7 {[%clk 00:00:17]} {[%emt 00:00:03]} 27.
Be5 {[%clk 00:00:05]} Rhg8 {[%clk 00:00:16]} {[%emt 00:00:03]} 28. Rd1+ {[%clk
00:00:05]} {[%emt 00:00:02]} Ke7 {[%clk 00:00:16]} {[%emt 00:00:03]} 29. f4
{[%clk 00:00:05]} {[%emt 00:00:02]} Rad8 {[%clk 00:00:15]} {[%emt 00:00:03]} 30.
Rg1 {[%clk 00:00:06]} {[%emt 00:00:01]} g6 {[%clk 00:00:16]} {[%emt 00:00:02]}
31. h4 {[%clk 00:00:07]} {[%emt 00:00:01]} h5 {[%clk 00:00:13]} {[%emt
00:00:05]} 32. Rg3 {[%clk 00:00:05]} {[%emt 00:00:04]} Rd5 {[%clk 00:00:13]}
{[%emt 00:00:02]} 33. c4 {[%clk 00:00:05]} {[%emt 00:00:01]} Rd7 {[%clk
00:00:14]} {[%emt 00:00:02]} 34. Kc2 {[%clk 00:00:06]} {[%emt 00:00:01]} Rdd8
{[%clk 00:00:13]} {[%emt 00:00:03]} 35. b4 {[%clk 00:00:06]} {[%emt 00:00:02]}
Rc8 {[%clk 00:00:14]} 36. c5 {[%clk 00:00:06]} {[%emt 00:00:02]} b6 {[%clk
00:00:15]} {[%emt 00:00:01]} 37. Bd6+ {[%clk 00:00:06]} {[%emt 00:00:02]} Kf6
{[%clk 00:00:16]} {[%emt 00:00:01]} 38. Kd3 {[%clk 00:00:06]} {[%emt 00:00:01]}
bxc5 {[%clk 00:00:17]} {[%emt 00:00:02]} 39. bxc5 {[%clk 00:00:05]} {[%emt
00:00:01]} Rgd8 {[%clk 00:00:17]} {[%emt 00:00:02]} 40. Ke4 {[%clk 00:00:07]}
{[%emt 00:00:02]} Rd7 {[%clk 00:00:17]} {[%emt 00:00:02]} 41. Rb3 {[%clk
00:00:05]} {[%emt 00:00:03]} Ra7 {[%clk 00:00:17]} {[%emt 00:00:03]} 42. Rb6
{[%clk 00:00:06]} {[%emt 00:00:02]} a5 {[%clk 00:00:17]} {[%emt 00:00:02]} 43.
a4 {[%clk 00:00:06]} {[%emt 00:00:01]} Rca8 {[%clk 00:00:17]} {[%emt 00:00:02]}
44. Be5+ {[%clk 00:00:06]} {[%emt 00:00:02]} Kf7 {[%clk 00:00:18]} 45. c6
{[%clk 00:00:07]} {[%emt 00:00:01]} Rc8 {[%clk 00:00:19]} {[%emt 00:00:02]} 46.
Rb7+ {[%clk 00:00:07]} {[%emt 00:00:02]} 1-0

[Event "MČR v bleskovém šachu družstev 2019"]
[Site "Teplice, Czech Republic"]
[Date "2019.09.14"]
[Round "14.4"]
[White "Pospichal, Michael"]
[Black "Vymazal, Bronislav"]
[Result "0-1"]
[TimeControl "3 mim. + 2 s"]
[WhiteFideId "387274"]
[BlackFideId "318396"]
[WhiteElo "1598"]
[BlackElo "2309"]

1. e4 {[%clk 00:03:03]} g6 {[%clk 00:03:03]} 2. d4 {[%clk 00:03:02]} {[%emt
00:00:03]} Bg7 {[%clk 00:03:04]} 3. c3 {[%clk 00:03:03]} {[%emt 00:00:01]} d5
{[%clk 00:03:00]} {[%emt 00:00:06]} 4. e5 {[%clk 00:03:01]} {[%emt 00:00:03]}
c5 {[%clk 00:03:00]} {[%emt 00:00:02]} 5. Nf3 {[%clk 00:02:50]} {[%emt
00:00:13]} Nc6 {[%clk 00:02:58]} {[%emt 00:00:03]} 6. Bd3 {[%clk 00:02:36]}
{[%emt 00:00:18]} Bg4 {[%clk 00:02:53]} {[%emt 00:00:08]} 7. Be3 {[%clk
00:02:24]} {[%emt 00:00:14]} cxd4 {[%clk 00:02:43]} {[%emt 00:00:12]} 8. cxd4
{[%clk 00:02:17]} {[%emt 00:00:09]} Qb6 {[%clk 00:02:41]} {[%emt 00:00:03]} 9.
Qd2 {[%clk 00:01:17]} {[%emt 00:01:02]} Bxf3 {[%clk 00:02:37]} {[%emt
00:00:06]} 10. gxf3 {[%clk 00:01:17]} {[%emt 00:00:02]} e6 {[%clk 00:02:21]}
{[%emt 00:00:17]} 11. Nc3 {[%clk 00:01:18]} {[%emt 00:00:01]} Nge7 {[%clk
00:02:13]} {[%emt 00:00:10]} 12. Nb5 {[%clk 00:01:08]} {[%emt 00:00:11]} O-O
{[%clk 00:02:08]} {[%emt 00:00:07]} 13. Nd6 {[%clk 00:01:09]} {[%emt 00:00:01]}
Nxd4 {[%clk 00:01:51]} {[%emt 00:00:19]} 14. Bxd4 {[%clk 00:00:24]} {[%emt
00:00:47]} Qxd4 {[%clk 00:01:48]} {[%emt 00:00:05]} 15. f4 {[%clk 00:00:13]}
{[%emt 00:00:14]} Bxe5 {[%clk 00:01:43]} {[%emt 00:00:07]} 16. fxe5 {[%clk
00:00:09]} {[%emt 00:00:06]} Qxe5+ {[%clk 00:01:43]} {[%emt 00:00:01]} 17. Ne4
{[%clk 00:00:10]} {[%emt 00:00:02]} dxe4 {[%clk 00:01:44]} {[%emt 00:00:02]}
0-1

[Event "MČR v bleskovém šachu družstev 2019"]
[Site "Teplice, Czech Republic"]
[Date "2019.09.14"]
[Round "14.5"]
[White "Jirovsky, Milos"]
[Black "Novotny, Michal"]
[Result "1-0"]
[TimeControl "3 mim. + 2 s"]
[WhiteTitle "GM"]
[BlackTitle "FM"]
[WhiteFideId "303224"]
[BlackFideId "310980"]
[WhiteElo "2499"]
[BlackElo "2299"]

1. Nf3 {[%clk 00:03:03]} {[%emt 00:13:12]} e6 {[%clk 00:03:01]} {[%emt
00:00:04]} 2. c4 {[%clk 00:03:04]} {[%emt 00:00:01]} d5 {[%clk 00:03:02]} 3. g3
{[%clk 00:03:05]} {[%emt 00:00:03]} Nf6 {[%clk 00:03:03]} 4. Bg2 {[%clk
00:03:07]} Be7 {[%clk 00:03:05]} 5. O-O {[%clk 00:03:07]} O-O {[%clk 00:03:06]}
6. b3 {[%clk 00:03:08]} {[%emt 00:00:02]} c5 {[%clk 00:03:07]} 7. cxd5 {[%clk
00:03:08]} {[%emt 00:00:03]} Nxd5 {[%clk 00:03:08]} 8. Bb2 {[%clk 00:03:09]}
Nc6 {[%clk 00:03:06]} {[%emt 00:00:05]} 9. Nc3 {[%clk 00:03:10]} Bf6 {[%clk
00:03:07]} 10. Rc1 {[%clk 00:03:06]} {[%emt 00:00:06]} Rb8 {[%clk 00:02:50]}
{[%emt 00:00:19]} 11. Qc2 {[%clk 00:02:54]} {[%emt 00:00:14]} Ndb4 {[%clk
00:02:43]} {[%emt 00:00:09]} 12. Qb1 {[%clk 00:02:49]} {[%emt 00:00:07]} b6
{[%clk 00:02:41]} {[%emt 00:00:03]} 13. Ne4 {[%clk 00:02:20]} {[%emt 00:00:32]}
Bxb2 {[%clk 00:02:36]} {[%emt 00:00:07]} 14. Qxb2 {[%clk 00:02:18]} {[%emt
00:00:04]} Ba6 {[%clk 00:02:27]} {[%emt 00:00:10]} 15. d3 {[%clk 00:02:12]}
{[%emt 00:00:08]} h6 {[%clk 00:02:21]} {[%emt 00:00:08]} 16. a3 {[%clk
00:02:10]} {[%emt 00:00:05]} Nd5 {[%clk 00:02:18]} {[%emt 00:00:05]} 17. b4
{[%clk 00:02:09]} {[%emt 00:00:03]} Nce7 {[%clk 00:01:39]} {[%emt 00:00:40]} 18.
bxc5 {[%clk 00:02:00]} {[%emt 00:00:12]} bxc5 {[%clk 00:01:40]} {[%emt
00:00:01]} 19. Qa2 {[%clk 00:01:53]} {[%emt 00:00:08]} Qb6 {[%clk 00:01:16]}
{[%emt 00:00:26]} 20. Nxc5 {[%clk 00:01:47]} {[%emt 00:00:07]} Bb5 {[%clk
00:01:04]} {[%emt 00:00:14]} 21. Ne5 {[%clk 00:01:33]} {[%emt 00:00:17]} Rfd8
{[%clk 00:00:51]} {[%emt 00:00:15]} 22. d4 {[%clk 00:01:23]} {[%emt 00:00:12]}
Be8 {[%clk 00:00:46]} {[%emt 00:00:07]} 23. e3 {[%clk 00:01:10]} {[%emt
00:00:15]} Qb2 {[%clk 00:00:44]} {[%emt 00:00:04]} 24. Qxb2 {[%clk 00:01:03]}
{[%emt 00:00:10]} Rxb2 {[%clk 00:00:44]} {[%emt 00:00:01]} 25. Ned3 {[%clk
00:01:03]} {[%emt 00:00:01]} Ra2 {[%clk 00:00:41]} {[%emt 00:00:05]} 26. Ra1
{[%clk 00:01:04]} {[%emt 00:00:01]} Rxa1 {[%clk 00:00:42]} {[%emt 00:00:02]} 27.
Rxa1 {[%clk 00:01:06]} Rb8 {[%clk 00:00:43]} 28. a4 {[%clk 00:01:04]} {[%emt
00:00:04]} Nc3 {[%clk 00:00:38]} {[%emt 00:00:07]} 29. Bf1 {[%clk 00:00:58]}
{[%emt 00:00:08]} Ned5 {[%clk 00:00:35]} {[%emt 00:00:05]} 30. a5 {[%clk
00:00:49]} {[%emt 00:00:11]} Bc6 {[%clk 00:00:37]} 31. Rc1 {[%clk 00:00:45]}
{[%emt 00:00:07]} Nb5 {[%clk 00:00:24]} {[%emt 00:00:15]} 32. Nxe6 {[%clk
00:00:41]} {[%emt 00:00:05]} Ndc3 {[%clk 00:00:12]} {[%emt 00:00:13]} 33. Nec5
{[%clk 00:00:41]} {[%emt 00:00:03]} f6 {[%clk 00:00:09]} {[%emt 00:00:05]} 34.
Nf4 {[%clk 00:00:41]} {[%emt 00:00:02]} Bf3 {[%clk 00:00:10]} {[%emt 00:00:02]}
35. Bc4+ {[%clk 00:00:41]} {[%emt 00:00:01]} Kh7 {[%clk 00:00:09]} {[%emt
00:00:03]} 36. Bd3+ {[%clk 00:00:42]} {[%emt 00:00:01]} Kg8 {[%clk 00:00:10]}
37. h4 {[%clk 00:00:38]} {[%emt 00:00:06]} g5 {[%clk 00:00:12]} 38. Ng2 {[%clk
00:00:30]} {[%emt 00:00:11]} Kf7 {[%clk 00:00:10]} {[%emt 00:00:03]} 39. Ne1
{[%clk 00:00:25]} {[%emt 00:00:06]} Ba8 {[%clk 00:00:09]} {[%emt 00:00:04]} 40.
f4 {[%clk 00:00:26]} {[%emt 00:00:01]} gxh4 {[%clk 00:00:09]} {[%emt 00:00:01]}
41. gxh4 {[%clk 00:00:28]} Rg8+ {[%clk 00:00:11]} 42. Kf2 {[%clk 00:00:29]}
{[%emt 00:00:01]} Nd5 {[%clk 00:00:08]} {[%emt 00:00:05]} 43. Bxb5 {[%clk
00:00:29]} {[%emt 00:00:02]} 1-0

[Event "MČR v bleskovém šachu družstev 2019"]
[Site "Teplice, Czech Republic"]
[Date "2019.09.14"]
[Round "14.6"]
[White "Rolinek, Dominik"]
[Black "Sokolov, Alexander"]
[Result "0-1"]
[TimeControl "3 mim. + 2 s"]
[BlackTitle "FM"]
[WhiteFideId "384569"]
[BlackFideId "4119177"]
[WhiteElo "1885"]
[BlackElo "2417"]

1. d4 {[%clk 00:03:03]} Nf6 {[%clk 00:03:03]} 2. Bf4 {[%clk 00:03:03]} g6
{[%clk 00:03:04]} {[%emt 00:00:02]} 3. Nc3 {[%clk 00:03:03]} {[%emt 00:00:03]}
c5 {[%clk 00:02:55]} {[%emt 00:00:10]} 4. e3 {[%clk 00:02:57]} {[%emt
00:00:08]} cxd4 {[%clk 00:02:55]} {[%emt 00:00:03]} 5. exd4 {[%clk 00:02:58]}
Bg7 {[%clk 00:02:56]} {[%emt 00:00:01]} 6. Nf3 {[%clk 00:02:56]} {[%emt
00:00:04]} O-O {[%clk 00:02:56]} {[%emt 00:00:01]} 7. Be2 {[%clk 00:02:55]}
{[%emt 00:00:02]} d6 {[%clk 00:02:56]} {[%emt 00:00:02]} 8. Qd2 {[%clk
00:02:53]} {[%emt 00:00:05]} Re8 {[%clk 00:02:54]} {[%emt 00:00:04]} 9. O-O-O
{[%clk 00:02:51]} {[%emt 00:00:04]} Nc6 {[%clk 00:02:50]} {[%emt 00:00:06]} 10.
h4 {[%clk 00:02:48]} {[%emt 00:00:05]} h5 {[%clk 00:02:51]} {[%emt 00:00:01]}
11. Bh6 {[%clk 00:02:45]} {[%emt 00:00:05]} Bh8 {[%clk 00:02:52]} 12. Bg5
{[%clk 00:02:30]} {[%emt 00:00:17]} a6 {[%clk 00:02:42]} {[%emt 00:00:12]} 13.
Nh2 {[%clk 00:02:11]} {[%emt 00:00:22]} b5 {[%clk 00:02:35]} {[%emt 00:00:09]}
14. f3 {[%clk 00:02:11]} {[%emt 00:00:03]} Qa5 {[%clk 00:02:23]} {[%emt
00:00:14]} 15. Kb1 {[%clk 00:02:04]} {[%emt 00:00:09]} b4 {[%clk 00:02:17]}
{[%emt 00:00:08]} 16. Ne4 {[%clk 00:02:04]} {[%emt 00:00:01]} Nxe4 {[%clk
00:02:15]} {[%emt 00:00:04]} 17. fxe4 {[%clk 00:02:03]} {[%emt 00:00:04]} Nxd4
{[%clk 00:02:15]} {[%emt 00:00:02]} 18. g4 {[%clk 00:01:59]} {[%emt 00:00:05]}
Be6 {[%clk 00:02:16]} {[%emt 00:00:01]} 19. b3 {[%clk 00:01:56]} {[%emt
00:00:05]} Nb5 {[%clk 00:02:02]} {[%emt 00:00:16]} 20. a4 {[%clk 00:01:48]}
{[%emt 00:00:10]} Nc3+ {[%clk 00:01:53]} {[%emt 00:00:12]} 21. Kc1 {[%clk
00:01:45]} {[%emt 00:00:04]} Nxa4 {[%clk 00:01:44]} {[%emt 00:00:12]} 22. bxa4
{[%clk 00:01:44]} {[%emt 00:00:03]} Qxa4 {[%clk 00:01:38]} {[%emt 00:00:08]} 23.
c4 {[%clk 00:01:31]} {[%emt 00:00:15]} bxc3 {[%clk 00:01:10]} {[%emt 00:00:30]}
24. Qc2 {[%clk 00:01:29]} {[%emt 00:00:03]} Qa3+ {[%clk 00:01:11]} {[%emt
00:00:02]} 0-1